fUSD/lending_fUSD_20250523
["ID","MTS","AMOUNT","RATE_DAILY","PERIOD"]
[362088743,1747987831708,-3985.41,0.00026898,2]
[362088744,1747987831717,-1062.01696113,0.00027072,16]
[362088745,1747987831727,-200.0,0.0002717,2]
[362088746,1747987831736,-250.0,0.0002717,2]
[362088747,1747987831746,-420.0,0.00027399,2]
[362088748,1747987831756,-995.1,0.00027459,15]
[362088749,1747987831766,-1062.01696113,0.00027659,17]
[362088750,1747987831775,-1000.0,0.00027663,2]
[362088751,1747987831785,-248.28,0.00027809,2]
[362088752,1747987831795,-150.0,0.00027918,7]
[362088753,1747987831804,-23890.0,0.00027927,2]
[362088754,1747987831814,-180.45,0.00027944,120]
[362088755,1747987831823,-600.0,0.00028202,2]
[362088756,1747987831834,-794.93,0.00028202,2]
[362088757,1747987831844,-4000.0,0.00028204,2]
[362088758,1747987831854,-1062.01696113,0.00028245,18]
[362088759,1747987831863,-155.07,0.00028337,2]
[362088760,1747987831873,-1151.0,0.00028439,2]
[362088761,1747987831883,-207.4,0.00028465,2]
[362088762,1747987831895,-152.0,0.0002847,3]
[362088763,1747987831905,-371.0,0.00028503,2]
[362088764,1747987831914,-622.9,0.00028657,2]
[362088765,1747987831924,-622.9,0.00028665,2]
[362088766,1747987831934,-622.9,0.00028673,2]
[362088767,1747987831945,-622.9,0.0002868,2]
[362088768,1747987831954,-622.9,0.00028688,2]
[362088770,1747987831964,-622.9,0.00028695,2]
[362088772,1747987831975,-622.9,0.00028703,2]
[362088774,1747987831984,-622.9,0.0002871,2]
[362088776,1747987831995,-622.9,0.00028718,2]
[362088778,1747987832004,-622.9,0.00028725,2]
[362088780,1747987832014,-622.9,0.00028733,2]
[362088782,1747987832023,-622.9,0.0002874,2]
[362088784,1747987832032,-622.9,0.00028748,2]
[362088786,1747987832043,-622.9,0.00028755,2]
[362088788,1747987832052,-622.9,0.00028763,2]
[362088790,1747987832062,-622.9,0.0002877,2]
[362088792,1747987832072,-622.9,0.00028778,2]
[362088794,1747987832081,-622.9,0.00028786,2]
[362088796,1747987832091,-622.9,0.00028793,2]
[362088798,1747987832100,-622.9,0.00028801,2]
[362088800,1747987832110,-197.96847172,0.00028812,2]
[362088802,1747987832120,-1062.01696113,0.00028831,19]
[362088804,1747987832129,-152.89299887,0.00028911,2]
[362088806,1747987832139,-150.0,0.00028911,2]
[362088809,1747987832148,-150.0,0.00028911,2]
[362088811,1747987832157,-168.5,0.00028911,2]
[362088813,1747987832167,-500.0,0.00029,5]
[362088815,1747987832176,-500.51654157,0.00029,5]
[362088816,1747987832185,-469.12891239,0.00029,5]
[362088818,1747987832195,-500.0,0.00029,5]
[362088820,1747987832204,-754.9,0.00029024,2]
[362088822,1747987832214,-210.814945,0.00029081,4]
[362088824,1747987832224,-1062.01696113,0.00029417,21]
[362088825,1747987832233,-165.45189807,0.00029507,30]
[362088826,1747987832243,-154.0,0.00029546,2]
[362088827,1747987832253,-881.0,0.00029546,2]
[362088828,1747987832263,-6838.0,0.00029546,2]
[362088829,1747987832273,-981.4059,0.000296,2]
[362088830,1747987832284,-587.0,0.00029673,2]
[362088831,1747987832294,-169.12,0.00029699,2]
[362088832,1747987832304,-165.45189807,0.00029699,30]
[362088833,1747987832314,-150.0,0.00029734,2]
[362088834,1747987832324,-275.95977431,0.00029742,2]
[362088835,1747987832334,-150.0,0.00029744,2]
[362088836,1747987832343,-150.0,0.00029757,2]
[362088837,1747987832353,-150.0,0.00029778,2]
[362088838,1747987832363,-592.13725531,0.00029799,20]
[362088839,1747987832373,-8763.30457978,0.000298,2]
[362088840,1747987832383,-161.51829077,0.000298,2]
[362088841,1747987832393,-8010.46037434,0.000298,2]
[362088842,1747987832405,-150.0,0.00029802,2]
[362088843,1747987832415,-154.88794324,0.00029836,2]
[362088844,1747987832424,-150.0,0.00029842,2]
[362088845,1747987832434,-8157.7332,0.00029851,2]
[362088846,1747987832444,-150.0,0.00029853,2]
[362088847,1747987832454,-1000.0,0.0002986,2]
[362088848,1747987832464,-1360.648,0.00029872,24]
[362088849,1747987832474,-511.64314303,0.00029873,5]
[362088850,1747987832484,-293.73714588,0.0002989,2]
[362088851,1747987832493,-37689.4375948,0.0002989,2]
[362088852,1747987832503,-165.45189807,0.0002989,30]
[362088853,1747987832513,-304.8154538,0.00029892,2]
[362088854,1747987832523,-9918.27305125,0.00029893,2]
[362088855,1747987832533,-420.0,0.00029898,4]
[362088856,1747987832545,-420.0,0.00029898,4]
[362088857,1747987832554,-420.0,0.00029898,4]
[362088858,1747987832564,-544.35825932,0.00029898,4]
[362088859,1747987832574,-236.98517975,0.00029898,2]
[362088860,1747987832584,-299.4105238,0.00029898,2]
[362088861,1747987832594,-217.75263057,0.00029898,2]
[362088862,1747987832603,-420.0,0.00029898,4]
[362088863,1747987832613,-420.0,0.00029898,4]
[362088864,1747987832623,-420.0,0.00029898,4]
[362088865,1747987832633,-420.0,0.00029898,4]
[362088866,1747987832642,-420.0,0.00029898,4]
[362088867,1747987832652,-420.0,0.00029898,4]
[362088868,1747987832663,-507.89555482,0.00029898,4]
[362088869,1747987832673,-515.80741361,0.00029898,4]
[362088870,1747987832683,-420.0,0.00029898,4]
[362088871,1747987832694,-420.0,0.00029898,4]
[362088872,1747987832704,-420.0,0.00029898,4]
[362088873,1747987832714,-420.0,0.00029898,4]
[362088874,1747987832724,-420.0,0.00029898,4]
[362088875,1747987832734,-558.96011362,0.00029898,4]
[362088876,1747987832744,-420.0,0.00029898,4]
[362088877,1747987832754,-420.0,0.00029898,4]
[362088878,1747987832763,-420.0,0.00029898,4]
[362088879,1747987832773,-420.0,0.00029898,4]
[362088880,1747987832783,-420.0,0.00029898,4]
[362088881,1747987832795,-558.07353528,0.00029898,4]
[362088882,1747987832804,-420.0,0.00029898,4]
[362088883,1747987832814,-420.0,0.00029898,2]
[362088884,1747987832824,-420.0,0.00029898,4]
[362088885,1747987832834,-420.0,0.00029898,4]
[362088886,1747987832843,-420.0,0.00029898,2]
[362088887,1747987832853,-420.0,0.00029898,4]
[362088888,1747987832863,-425.58736132,0.00029899,4]
[362088889,1747987832873,-420.0,0.00029899,4]
[362088890,1747987832883,-420.0,0.00029899,4]
[362088891,1747987832896,-420.0,0.00029899,4]
[362088892,1747987832906,-420.0,0.00029899,4]
[362088893,1747987832916,-476.6397025,0.00029899,4]
[362088894,1747987832926,-172.53090817,0.00029899,4]
[362088895,1747987832937,-428.43621724,0.00029899,4]
[362088896,1747987832947,-420.0,0.00029899,4]
[362088897,1747987832957,-430.32593815,0.00029899,4]
[362088898,1747987832968,-314.67024066,0.00029899,4]
[362088899,1747987832978,-420.0,0.00029899,4]
[362088900,1747987832988,-420.0,0.00029899,4]
[362088901,1747987832998,-423.40726726,0.00029899,4]
[362088902,1747987833007,-420.0,0.00029899,4]
[362088903,1747987833018,-420.0,0.00029899,4]
[362088904,1747987833028,-427.35760294,0.00029899,4]
[362088905,1747987833038,-438.65357206,0.00029899,4]
[362088906,1747987833049,-432.40629289,0.00029899,4]
[362088907,1747987833060,-420.0,0.00029899,4]
[362088908,1747987833070,-507.43095037,0.00029899,4]
[362088909,1747987833081,-539.54823746,0.00029899,4]
[362088910,1747987833326,-460.6766885,0.00029899,4]
[362088911,1747987833336,-420.0,0.00029899,4]
[362088912,1747987833346,-423.40759414,0.00029899,4]
[362088913,1747987833355,-1000.0,0.00029899,2]
[362088914,1747987833365,-422.2219892,0.00029899,4]
[362088915,1747987833374,-420.0,0.00029899,4]
[362088916,1747987833384,-248.86451748,0.00029899,4]
[362088917,1747987833394,-458.69004497,0.00029899,4]
[362088918,1747987833403,-444.77631602,0.00029899,4]
[362088919,1747987833412,-424.26231401,0.00029899,4]
[362088920,1747987833422,-420.0,0.00029899,4]
[362088921,1747987833431,-424.84712235,0.00029899,4]
[362088922,1747987833441,-420.0,0.00029899,4]
[362088923,1747987833450,-420.0,0.00029899,4]
[362088924,1747987833460,-561.36725864,0.00029899,4]
[362088925,1747987833469,-426.73148502,0.00029899,4]
[362088926,1747987833479,-420.0,0.00029899,4]
[362088927,1747987833488,-420.0,0.00029899,4]
[362088928,1747987833498,-434.06542881,0.00029899,4]
[362088929,1747987833507,-420.0,0.00029899,4]
[362088930,1747987833517,-420.0,0.00029899,4]
[362088931,1747987833526,-420.0,0.00029899,4]
[362088932,1747987833535,-429.44262523,0.00029899,4]
[362088933,1747987833545,-420.0,0.00029899,4]
[362088934,1747987833555,-427.34768518,0.00029899,4]
[362088935,1747987833565,-420.0,0.00029899,4]
[362088936,1747987833574,-420.0,0.00029899,4]
[362088937,1747987833584,-430.58685148,0.00029899,4]
[362088938,1747987833593,-420.0,0.00029899,4]
[362088939,1747987833602,-430.82186935,0.00029899,4]
[362088940,1747987833612,-429.95560352,0.00029899,4]
[362088941,1747987833621,-420.0,0.00029899,4]
[362088942,1747987833631,-432.44312035,0.00029899,4]
[362088943,1747987833640,-420.0,0.00029899,4]
[362088944,1747987833650,-420.0,0.00029899,4]
[362088945,1747987833659,-420.0,0.00029899,4]
[362088946,1747987833669,-432.75653539,0.00029899,4]
[362088947,1747987833678,-420.0,0.00029899,4]
[362088948,1747987833687,-420.0,0.00029899,4]
[362088949,1747987833698,-420.0,0.00029899,4]
[362088950,1747987833707,-426.77481901,0.00029899,4]
[362088951,1747987833717,-448.40962001,0.00029899,4]
[362088952,1747987833726,-420.0,0.00029899,4]
[362088953,1747987833735,-420.0,0.00029899,4]
[362088954,1747987833745,-429.28719626,0.00029899,4]
[362088955,1747987833755,-420.0,0.00029899,4]
[362088956,1747987833764,-420.0,0.00029899,4]
[362088957,1747987833773,-420.0,0.00029899,4]
[362088958,1747987833783,-420.0,0.00029899,4]
[362088959,1747987833792,-479.74961059,0.00029899,4]
[362088960,1747987833801,-420.0,0.00029899,4]
[362088961,1747987833810,-420.0,0.00029899,4]
[362088962,1747987833819,-1443.02,0.00029899,4]
[362088963,1747987833829,-450.83440347,0.00029899,4]
[362088964,1747987833838,-432.58453032,0.00029899,4]
[362088965,1747987833847,-420.0,0.00029899,4]
[362088966,1747987833856,-432.39388411,0.00029899,4]
[362088967,1747987833866,-366.89805876,0.00029899,4]
[362088968,1747987833876,-160.0,0.00029899,4]
[362088969,1747987833886,-389.13082183,0.00029899,4]
[362088970,1747987833899,-420.0,0.00029899,4]
[362088971,1747987833909,-420.0,0.00029899,4]
[362088972,1747987833918,-550.60881277,0.00029899,4]
[362088973,1747987833928,-420.0,0.00029899,4]
[362088974,1747987833938,-256.989552,0.00029899,4]
[362088975,1747987833948,-420.0,0.00029899,4]
[362088976,1747987833958,-432.56612357,0.00029899,4]
[362088977,1747987833969,-515.72504061,0.00029899,4]
[362088978,1747987833979,-420.0,0.00029899,4]
[362088979,1747987833989,-432.47574006,0.00029899,4]
[362088980,1747987833998,-330.09084736,0.00029899,4]
[362088981,1747987834008,-1105.41,0.00029899,4]
[362088982,1747987834017,-420.0,0.00029899,4]
[362088983,1747987834027,-420.0,0.00029899,4]
[362088984,1747987834037,-410.74158603,0.00029899,4]
[362088985,1747987834047,-429.35714078,0.00029899,4]
[362088986,1747987834058,-420.0,0.00029899,4]
[362088987,1747987834067,-420.0,0.00029899,4]
[362088988,1747987834077,-420.0,0.00029899,4]
[362088989,1747987834086,-420.0,0.00029899,4]
[362088990,1747987834096,-3359.97,0.00029899,4]
[362088991,1747987834106,-564.53681595,0.00029899,4]
[362088992,1747987834115,-694.82,0.00029899,4]
[362088993,1747987834124,-420.0,0.00029899,4]
[362088994,1747987834134,-318.78620926,0.00029899,4]
[362088995,1747987834371,-5745.16379074,0.00029899,4]
[362088996,1747987834381,-420.0,0.00029899,4]
[362088997,1747987834390,-370.0,0.00029899,4]
[362088998,1747987834400,-420.0,0.00029899,4]
[362088999,1747987834409,-429.09514938,0.00029899,4]
[362089000,1747987834419,-425.52977685,0.00029899,4]
[362089001,1747987834428,-420.0,0.00029899,4]
[362089002,1747987834437,-182.44797278,0.00029899,4]
[362089003,1747987834509,-364.08336886,0.00028203,2]
[362089004,1747987834518,-500.0,0.00028203,2]
[362089005,1747987834527,-500.0,0.00028203,2]
[362089006,1747987834537,-237.55202722,0.00029899,4]
[362089007,1747987834547,-1007.99,0.00029899,4]
[362089008,1747987834556,-420.0,0.00029899,4]
[362089009,1747987834566,-2449.1,0.00029899,4]
[362089010,1747987834576,-420.0,0.00029899,4]
[362089011,1747987834586,-420.0,0.00029899,4]
[362089012,1747987834595,-420.0,0.00029899,4]
[362089013,1747987834605,-425.03487231,0.00029899,4]
[362089014,1747987834615,-420.0,0.00029899,4]
[362089015,1747987834625,-892.29,0.00029899,4]
[362089016,1747987834635,-420.0,0.00029899,4]
[362089017,1747987834644,-420.0,0.00029899,4]
[362089018,1747987834654,-420.0,0.00029899,4]
[362089019,1747987834664,-420.0,0.00029899,4]
[362089020,1747987834674,-1636.99,0.00029899,4]
[362089021,1747987834684,-431.04005987,0.00029899,4]
[362089022,1747987834694,-420.0,0.00029899,4]
[362089023,1747987834704,-420.0,0.00029899,4]
[362089024,1747987834714,-420.0,0.00029899,4]
[362089025,1747987834723,-420.0,0.00029899,4]
[362089026,1747987834733,-420.0,0.00029899,4]
[362089027,1747987834743,-420.0,0.00029899,4]
[362089028,1747987834752,-420.0,0.00029899,4]
[362089029,1747987834761,-420.0,0.00029899,4]
[362089030,1747987834771,-420.0,0.00029899,4]
[362089031,1747987834781,-420.0,0.00029899,4]
[362089032,1747987834791,-420.0,0.00029899,4]
[362089033,1747987834801,-420.0,0.00029899,4]
[362089034,1747987834810,-405.54717455,0.00029899,4]
[362089035,1747987834820,-424.53193286,0.00029899,4]
[362089036,1747987834829,-420.0,0.00029899,4]
[362089037,1747987834838,-420.0,0.00029899,4]
[362089038,1747987834847,-420.0,0.00029899,4]
[362089039,1747987834857,-420.0,0.00029899,4]
[362089040,1747987834866,-420.0,0.00029899,4]
[362089041,1747987834875,-420.0,0.00029899,4]
[362089042,1747987834885,-420.0,0.00029899,4]
[362089043,1747987834899,-504.66020585,0.00029899,4]
[362089044,1747987834909,-420.0,0.00029899,4]
[362089045,1747987834918,-431.36787878,0.00029899,4]
[362089046,1747987834928,-420.0,0.00029899,4]
[362089047,1747987834939,-420.0,0.00029899,4]
[362089048,1747987834949,-420.0,0.00029899,4]
[362089049,1747987834958,-420.0,0.00029899,4]
[362089050,1747987834969,-420.57,0.00029899,4]
[362089051,1747987834979,-420.0,0.00029899,4]
[362089052,1747987834989,-420.0,0.00029899,4]
[362089053,1747987834999,-420.0,0.00029899,4]
[362089054,1747987835008,-420.0,0.00029899,4]
[362089055,1747987835018,-420.0,0.00029899,4]
[362089056,1747987835027,-6242.95,0.00029899,4]
[362089057,1747987835037,-430.83090265,0.00029899,4]
[362089058,1747987835048,-461.79,0.00029899,4]
[362089059,1747987835058,-420.0,0.00029899,4]
[362089060,1747987835067,-420.0,0.00029899,4]
[362089061,1747987835077,-1472.05,0.00029899,4]
[362089062,1747987835086,-420.0,0.00029899,4]
[362089063,1747987835096,-420.0,0.00029899,4]
[362089064,1747987835105,-446.44946982,0.00029899,4]
[362089065,1747987835114,-420.0,0.00029899,4]
[362089066,1747987835124,-420.0,0.00029899,4]
[362089067,1747987835133,-484.37866713,0.00029899,4]
[362089068,1747987835142,-441.85147652,0.00029899,4]
[362089069,1747987835151,-420.0,0.00029899,4]
[362089070,1747987835160,-487.82028625,0.00029899,4]
[362089071,1747987835170,-420.0,0.00029899,4]
[362089072,1747987835179,-448.53757169,0.00029899,4]
[362089073,1747987835188,-445.2317929,0.00029899,4]
[362089074,1747987835197,-420.0,0.00029899,4]
[362089075,1747987835207,-420.0,0.00029899,4]
[362089076,1747987835216,-420.0,0.00029899,4]
[362089077,1747987835226,-566.27,0.00029899,4]
[362089078,1747987835235,-420.0,0.00029899,4]
[362089079,1747987835245,-431.87436663,0.00029899,4]
[362089080,1747987835254,-420.0,0.00029899,4]
[362089081,1747987835263,-465.80787813,0.00029899,4]
[362089082,1747987835272,-185.41816051,0.00029899,4]
[362089083,1747987835287,-234.58183949,0.00029899,4]
[362089084,1747987835297,-420.0,0.00029899,4]
[362089085,1747987835307,-196.31014051,0.00029899,4]
[362089086,1747987835342,-303.0345973,0.00028203,2]
[362089087,1747987835352,-500.0,0.00028203,2]
[362089088,1747987835361,-292.36200568,0.00028203,2]
[362089089,1747987835370,-500.0,0.00028203,2]
[362089090,1747987835380,-223.68985949,0.00029899,4]
[362089091,1747987835390,-428.93503008,0.00029899,4]
[362089092,1747987835399,-420.0,0.00029899,4]
[362089093,1747987835408,-569.72734972,0.00029899,4]
[362089094,1747987835418,-420.0,0.00029899,4]
[362089095,1747987835427,-506.08696782,0.00029899,4]
[362089096,1747987835437,-420.0,0.00029899,4]
[362089097,1747987835446,-420.0,0.00029899,4]
[362089098,1747987835456,-420.0,0.00029899,4]
[362089099,1747987835465,-112.87798991,0.00029899,4]
[362089102,1747987837472,-500.0,0.00028203,2]
[362089103,1747987837481,-75.79183066,0.00028203,2]
[362089104,1747987837537,-424.20816934,0.00028203,2]
[362089105,1747987837548,-434.3248742,0.00028203,2]
[362089106,1747987837560,-65.6751258,0.00028203,2]
[362089107,1747987837570,-500.0,0.00028203,2]
[362089108,1747987837579,-214.12298556,0.00028203,2]
[362089109,1747987837601,-276.225,0.00028203,2]
[362089274,1747987839894,-9.65201444,0.00028203,2]
[362089276,1747987839904,-500.0,0.00028203,2]
[362089278,1747987839913,-500.0,0.00028203,2]
[362089280,1747987839923,-500.0,0.00028203,2]
[362089282,1747987839934,-500.0,0.00028203,2]
[362089284,1747987839943,-500.0,0.00028203,2]
[362089286,1747987839952,-500.0,0.00028203,2]
[362089288,1747987839961,-500.0,0.00028203,2]
[362089290,1747987839971,-500.0,0.00028203,2]
[362089292,1747987839981,-500.0,0.00028203,2]
[362089294,1747987839991,-500.0,0.00028203,2]
[362089296,1747987840000,-602.74322665,0.00028203,2]
[362089298,1747987840010,-500.0,0.00028203,2]
[362089300,1747987840019,-500.0,0.00028203,2]
[362089302,1747987840028,-500.0,0.00028203,2]
[362089303,1747987840037,-500.0,0.00028203,2]
[362089305,1747987840046,-588.89911124,0.00028613,2]
[362089307,1747987840055,-4052.0,0.00029546,2]
[362089309,1747987840064,-728.044,0.00029546,2]
[362089311,1747987840073,-166.66648914,0.000298,15]
[362089313,1747987840082,-204.14918485,0.00029898,4]
[362089315,1747987840091,-420.0,0.00029898,2]
[362089317,1747987840101,-420.0,0.00029898,4]
[362089319,1747987840110,-420.0,0.00029898,4]
[362089321,1747987840119,-307.12201009,0.00029899,4]
[362089323,1747987840128,-420.0,0.00029899,4]
[362089325,1747987840137,-468.10696246,0.00029899,4]
[362089328,1747987840146,-420.0,0.00029899,4]
[362089330,1747987840155,-425.95606911,0.00029899,4]
[362089332,1747987840164,-420.0,0.00029899,4]
[362089334,1747987840173,-423.4314077,0.00029899,4]
[362089336,1747987840183,-428.79284174,0.00029899,4]
[362089338,1747987840192,-9372.47,0.00029899,4]
[362089339,1747987840201,-430.05660377,0.00029899,4]
[362089341,1747987840210,-420.0,0.00029899,4]
[362089343,1747987840219,-420.0,0.00029899,4]
[362089345,1747987840228,-426.33572134,0.00029899,4]
[362089347,1747987840237,-420.0,0.00029899,4]
[362089349,1747987840247,-420.0,0.00029899,4]
[362089351,1747987840256,-420.0,0.00029899,4]
[362089353,1747987840265,-512.4565651,0.00029899,4]
[362089355,1747987840276,-420.0,0.00029899,4]
[362089357,1747987840285,-426.5595355,0.00029899,4]
[362089359,1747987840294,-420.0,0.00029899,4]
[362089361,1747987840304,-420.0,0.00029899,4]
[362089363,1747987840314,-420.0,0.00029899,4]
[362089365,1747987840323,-420.0,0.00029899,4]
[362089367,1747987840333,-420.0,0.00029899,4]
[362089369,1747987840342,-420.0,0.00029899,4]
[362089371,1747987840351,-575.27,0.00029899,4]
[362089373,1747987840361,-420.0,0.00029899,4]
[362089375,1747987840370,-420.0,0.00029899,4]
[362089377,1747987840380,-420.0,0.00029899,4]
[362089379,1747987840389,-420.0,0.00029899,4]
[362089381,1747987840398,-420.0,0.00029899,4]
[362089383,1747987840408,-543.7,0.00029899,4]
[362089385,1747987840417,-420.0,0.00029899,4]
[362089387,1747987840425,-420.0,0.00029899,4]
[362089389,1747987840434,-720.79,0.00029899,4]
[362089391,1747987840444,-420.0,0.00029899,4]
[362089393,1747987840453,-429.95419268,0.00029899,4]
[362089395,1747987840461,-420.0,0.00029899,4]
[362089397,1747987840470,-785.88,0.00029899,2]
[362089399,1747987840480,-849.4,0.00029899,2]
[362089400,1747987840489,-4146.46,0.00029899,4]
[362089402,1747987840498,-2019.10111611,0.00029899,4]
[362089404,1747987840507,-420.0,0.00029899,4]
[362089406,1747987840516,-420.0,0.00029899,4]
[362089408,1747987840525,-426.49652855,0.00029899,4]
[362089410,1747987840533,-420.0,0.00029899,4]
[362089412,1747987840543,-176.49971018,0.00029899,4]
[362089414,1747987840552,-420.0,0.00029899,4]
[362089416,1747987840562,-428.42687859,0.00029899,4]
[362089418,1747987840571,-420.0,0.00029899,4]
[362089420,1747987840581,-420.0,0.00029899,4]
[362089422,1747987840590,-420.0,0.00029899,4]
[362089424,1747987840599,-420.0,0.00029899,4]
[362089426,1747987840608,-420.0,0.00029899,4]
[362089428,1747987840617,-420.0,0.00029899,4]
[362089430,1747987840626,-429.77987378,0.00029899,4]
[362089432,1747987840636,-420.0,0.00029899,4]
[362089434,1747987840644,-420.0,0.00029899,4]
[362089436,1747987840654,-420.0,0.00029899,4]
[362089438,1747987840663,-420.0,0.00029899,4]
[362089440,1747987840672,-420.0,0.00029899,4]
[362089442,1747987840682,-420.0,0.00029899,4]
[362089444,1747987840691,-434.73584233,0.00029899,4]
[362089446,1747987840699,-420.0,0.00029899,4]
[362089448,1747987840708,-420.0,0.00029899,4]
[362089450,1747987840717,-474.5797611,0.00029899,4]
[362089451,1747987840727,-429.1318345,0.00029899,4]
[362089454,1747987840736,-451.01582579,0.00029899,4]
[362089455,1747987840745,-420.0,0.00029899,4]
[362089458,1747987840755,-420.0,0.00029899,4]
[362089459,1747987840764,-420.0,0.00029899,4]
[362089461,1747987840773,-420.0,0.00029899,4]
[362089464,1747987840783,-507.18687838,0.00029899,4]
[362089466,1747987840792,-420.0,0.00029899,4]
[362089468,1747987840803,-433.87985315,0.00029899,4]
[362089469,1747987840811,-420.0,0.00029899,4]
[362089471,1747987840820,-427.75046699,0.00029899,4]
[362089473,1747987840829,-542.75,0.00029899,4]
[362089475,1747987840839,-442.98428475,0.00029899,4]
[362089478,1747987840849,-420.0,0.00029899,4]
[362089480,1747987840858,-420.0,0.00029899,4]
[362089482,1747987840868,-429.21911485,0.00029899,4]
[362089483,1747987840877,-420.0,0.00029899,4]
[362089485,1747987840886,-262.54162486,0.00029899,4]
[362089487,1747987840899,-495.04122573,0.00029899,4]
[362089489,1747987840908,-1032.56,0.00029899,4]
[362089491,1747987840917,-420.0,0.00029899,4]
[362089493,1747987840926,-420.0,0.00029899,4]
[362089495,1747987840937,-426.46617227,0.00029899,4]
[362089497,1747987840946,-420.0,0.00029899,4]
[362089499,1747987840955,-420.0,0.00029899,4]
[362089501,1747987840964,-461.43134907,0.00029899,4]
[362089503,1747987840975,-420.0,0.00029899,4]
[362089505,1747987840985,-420.0,0.00029899,4]
[362089507,1747987840994,-1003.24,0.00029899,4]
[362089509,1747987841003,-420.0,0.00029899,4]
[362089511,1747987841012,-1471.23,0.00029899,4]
[362089513,1747987841022,-429.92385459,0.00029899,4]
[362089515,1747987841031,-434.78644627,0.00029899,4]
[362089517,1747987841040,-55.75884937,0.00029899,4]
[362089974,1747987845610,-150.0,0.00029772,2]
[362089976,1747987845620,-420.0,0.00029898,4]
[362089978,1747987845629,-525.73674033,0.00029898,4]
[362089980,1747987845639,-171.326368,0.00029898,4]
[362089982,1747987845648,-420.0,0.00029898,4]
[362089984,1747987845657,-420.0,0.00029898,4]
[362089986,1747987845667,-364.24115063,0.00029899,4]
[362089988,1747987845677,-540.45879082,0.00029899,4]
[362089990,1747987845687,-420.0,0.00029899,4]
[362089993,1747987845697,-427.27494512,0.00029899,4]
[362089994,1747987845706,-420.0,0.00029899,4]
[362089996,1747987845716,-420.0,0.00029899,4]
[362089998,1747987845726,-499.02,0.00029899,4]
[362090000,1747987845736,-420.0,0.00029899,4]
[362090003,1747987845745,-420.0,0.00029899,4]
[362090006,1747987845755,-420.0,0.00029899,4]
[362090008,1747987845764,-420.0,0.00029899,4]
[362090011,1747987845774,-420.0,0.00029899,4]
[362090013,1747987845795,-420.0,0.00029899,4]
[362090016,1747987845809,-420.0,0.00029899,4]
[362090018,1747987845819,-420.0,0.00029899,4]
[362090020,1747987845831,-420.0,0.00029899,4]
[362090022,1747987845842,-420.0,0.00029899,4]
[362090024,1747987845852,-420.0,0.00029899,4]
[362090026,1747987845862,-420.0,0.00029899,4]
[362090028,1747987845873,-420.0,0.00029899,4]
[362090030,1747987845883,-422.30835484,0.00029899,4]
[362090033,1747987845895,-420.0,0.00029899,4]
[362090035,1747987845907,-784.41,0.00029899,4]
[362090037,1747987845916,-420.0,0.00029899,4]
[362090039,1747987845927,-420.0,0.00029899,4]
[362090041,1747987845938,-420.0,0.00029899,4]
[362090043,1747987845948,-420.0,0.00029899,4]
[362090045,1747987845958,-3354.54,0.00029899,4]
[362090047,1747987845969,-582.21,0.00029899,2]
[362090049,1747987845978,-494.40024165,0.00029899,4]
[362090051,1747987845989,-420.0,0.00029899,4]
[362090053,1747987845999,-420.0,0.00029899,4]
[362090055,1747987846009,-522.23099564,0.00029899,4]